[Event "Czech Juniors Girls 2024"]
[Site "Jaromerice nad Rokytnou"]
[Date "2024.03.10"]
[Round "1.1"]
[White "Fizerova, Lucie"]
[Black "Trasakova, Adela"]
[Result "1-0"]
[ECO "B13"]
[WhiteElo "1886"]
[BlackElo "1935"]
[Annotator "ChessBase"]
[PlyCount "53"]
[EventDate "2024.03.10"]
[EventType "tourn"]
[EventCountry "CZE"]
[SourceTitle "playchess.com"]
[Source "ChessBase"]
[SourceQuality "1"]
[WhiteTeam "Czech Republic"]
[BlackTeam "Czech Republic"]
[WhiteTeamCountry "CZE"]
[BlackTeamCountry "CZE"]
[TimeControl "40/5400+30:1800+30"]

1. e4 {[%emt 0:00:08]} c6 {[%emt 0:00:19]} 2. d4 {[%emt 0:00:10]} d5 {[%emt 0:00:02]} 3. exd5 {[%emt 0:00:09]} cxd5 {[%emt 0:00:08]} 4. Bd3 {[%emt 0:00:10]} Nc6 {[%emt 0:00:20]} 5. c3 {[%emt 0:00:09]} Qc7 {[%emt 0:00:17]} 6. h3 {[%emt 0:00:15]} Nf6 {[%emt 0:00:33]} 7. Nf3 {[%emt 0:00:31]} g6 {[%emt 0:00:39]} 8. O-O {[%emt 0:00:31]} Bf5 {[%emt 0:00:45]} 9. Be2 {[%emt 0:00:18]} Bxb1 {[%emt 0:10:51]} 10. Rxb1 {[%emt 0:01:08]} Bg7 {[%emt 0:00:22]} 11. Re1 {[%emt 0:04:02]} O-O {[%emt 0:04:39]} 12. Be3 {[%emt 0:02:02]} a6 {[%emt 0:04:51]} 13. a4 {[%emt 0:02:19]} Nd7 {[%emt 0:13:51]} 14. Qd2 {[%emt 0:05:15]} Na5 {[%emt 0:04:30]} 15. Bf4 {[%emt 0:05:19]} Qc8 {[%emt 0:11:56]} 16. b3 {[%emt 0:07:58]} b6 {[%emt 0:06:00]} 17. Rec1 {[%emt 0:05:46]} Qb7 {[%emt 0:07:57]} 18. c4 {[%emt 0:04:41]} Rfc8 {[%emt 0:06:09]} 19. Ne5 {[%emt 0:20:09]} Nxe5 {[%emt 0:08:18]} 20. dxe5 {[%emt 0:02:05]} e6 {[%emt 0:06:39]} 21. Bf3 {[%emt 0:03:43]} Qd7 {[%emt 0:04:24]} 22. Rd1 {[%emt 0:01:27]} Ra7 {[%emt 0:05:10]} 23. cxd5 {[%emt 0:00:52]} Rac7 {[%emt 0:00:53]} 24. Qe3 {[%emt 0:02:48]} exd5 {[%emt 0:02:11]} 25. Bg4 {[%emt 0:02:14]} Qe7 {[%emt 0:00:44]} 26. Bxc8 {[%emt 0:00:12]} Rxc8 {[%emt 0:00:29]} 27. Rxd5 {[%emt 0:00:43]} 1-0

[Event "Czech Juniors Girls 2024"]
[Site "Jaromerice nad Rokytnou"]
[Date "2024.03.10"]
[Round "1.2"]
[White "Nagyova, Daniela"]
[Black "Voriskova, Anna"]
[Result "1-0"]
[ECO "B35"]
[WhiteElo "1927"]
[BlackElo "1999"]
[Annotator "RC"]
[PlyCount "89"]
[EventDate "2024.03.10"]
[EventType "tourn"]
[EventCountry "CZE"]
[SourceTitle "playchess.com"]
[Source "ChessBase"]
[SourceQuality "1"]
[WhiteTeam "Czech Republic"]
[BlackTeam "Czech Republic"]
[WhiteTeamCountry "CZE"]
[BlackTeamCountry "CZE"]
[TimeControl "40/5400+30:1800+30"]

1. e4 {[%emt 0:00:06]} c5 {[%emt 0:00:09]} 2. Nf3 {[%emt 0:00:21]} Nc6 {[%emt 0:00:17]} 3. Nc3 {[%emt 0:00:20]} g6 {[%emt 0:06:06]} 4. d4 {[%emt 0:00:34]} cxd4 {[%emt 0:00:16]} 5. Nxd4 {[%emt 0:00:11]} Bg7 {[%emt 0:00:10]} 6. Be3 {[%emt 0:00:50]} Nf6 {[%emt 0:04:54]} 7. Bc4 {[%emt 0:02:16]} Qa5 {[%emt 0:03:53]} 8. O-O {[%emt 0:02:18]} O-O {[%emt 0:00:49]} 9. Bb3 {[%emt 0:02:51]} a6 {[%emt 0:04:59]} 10. Re1 {[%emt 0:03:43]} d6 {[%emt 0:10:24]} 11. h3 {[%emt 0:06:00]} Qc7 {[%emt 0:09:11]} 12. Qd2 {[%emt 0:06:59]} Na5 {[%emt 0:11:15]} 13. Nd5 {[%emt 0:08:28]} Nxd5 {[%emt 0:01:12]} 14. exd5 {[%emt 0:00:59]} Nxb3 {[%emt 0:04:04]} 15. axb3 {[%emt 0:01:21]} e5 {[%emt 0:26:19]} 16. dxe6 {[%emt 0:24:56]} fxe6 {[%emt 0:00:01]} 17. Bg5 {[%emt 0:08:39]} Qc5 {[%emt 0:12:26]} 18. Be3 {[%emt 0:09:22]} Qh5 {[%emt 0:00:56]} 19. Ra5 {[%emt 0:04:59]} e5 {[%emt 0:00:14]} 20. Ne2 {[%emt 0:01:26]} Qf5 {[%emt 0:01:32]} 21. Ng3 {[%emt 0:01:41]} Qd7 {[%emt 0:00:40]} 22. Rd5 {[%emt 0:01:15]} Qf7 {[%emt 0:01:03]} 23. Rxd6 {[%emt 0:02:18]} Be6 {[%emt 0:00:34]} 24. Ne4 {[%emt 0:01:58]} Bf5 {[%emt 0:00:06]} 25. Ng5 {[%emt 0:01:48]} Qc7 {[%emt 0:00:53]} 26. Qd5+ {[%emt 0:02:24]} Kh8 {[%emt 0:00:00]} 27. c4 {[%emt 0:02:29]} h6 {[%emt 0:00:23]} 28. Ne6 {[%emt 0:02:27]} Bxe6 {[%emt 0:00:01]} 29. Rxe6 {[%emt 0:00:19]} Kh7 {[%emt 0:00:43]} 30. Rd6 {[%emt 0:00:51]} b5 {[%emt 0:01:29]} 31. Rd7 {[%emt 0:00:31]} Qa5 {[%emt 0:00:23]} 32. Bd2 {[%emt 0:00:50]} Qb6 {[%emt 0:00:25]} 33. c5 {[%emt 0:00:52]} Qf6 {[%emt 0:00:14]} 34. Re2 {[%emt 0:00:35]} Rad8 {[%emt 0:00:37]} 35. Bc3 {[%emt 0:00:18]} Rxd7 {[%emt 0:00:13]} 36. Qxd7 {[%emt 0:00:08]} Rd8 {[%emt 0:00:22]} 37. Qg4 {[%emt 0:00:35]} h5 {[%emt 0:00:57]} 38. Qe4 {[%emt 0:00:31]} Qe6 {[%emt 0:00:42]} 39. b4 {[%emt 0:00:45]} Qb3 {[%emt 0:00:26]} 40. Kh2 {[%emt 0:00:43]} Re8 {[%emt 0:00:40]} 41. f4 {[%emt 0:03:53]} Rf8 {[%emt 0:02:24]} 42. fxe5 {[%emt 0:04:31]} Rf1 {[%emt 0:05:22]} 43. e6 {[%emt 0:04:49]} Bxc3 {[%emt 0:01:21]} 44. e7 {[%emt 0:03:33]} Be1 {[%emt 0:05:21]} 45. Rxe1 {[%emt 0:01:14]} 1-0

[Event "Czech Juniors Girls 2024"]
[Site "Jaromerice nad Rokytnou"]
[Date "2024.03.10"]
[Round "1.3"]
[White "Markina, Sofiia"]
[Black "Petirova, Iva"]
[Result "1-0"]
[ECO "B12"]
[WhiteElo "1857"]
[BlackElo "1846"]
[Annotator "NA"]
[PlyCount "77"]
[EventDate "2024.03.10"]
[EventType "tourn"]
[EventCountry "CZE"]
[SourceTitle "playchess.com"]
[Source "ChessBase"]
[SourceQuality "1"]
[WhiteTeam "Czech Republic"]
[BlackTeam "Czech Republic"]
[WhiteTeamCountry "CZE"]
[BlackTeamCountry "CZE"]
[TimeControl "40/5400+30:1800+30"]

1. e4 {[%emt 0:00:02]} c6 {[%emt 0:00:15]} 2. d4 {[%emt 0:00:04]} d5 {[%emt 0:00:09]} 3. e5 {[%emt 0:00:02]} Bf5 {[%emt 0:00:38]} 4. h4 {[%emt 0:00:12]} h5 {[%emt 0:00:50]} 5. Bd3 {[%emt 0:00:06]} Bxd3 {[%emt 0:00:59]} 6. Qxd3 {[%emt 0:00:07]} Qa5+ {[%emt 0:01:02]} 7. Nd2 {[%emt 0:00:23]} e6 {[%emt 0:01:03]} 8. Ngf3 {[%emt 0:00:23]} Nh6 {[%emt 0:01:15]} 9. O-O {[%emt 0:00:25]} Nf5 {[%emt 0:00:34]} 10. c4 {[%emt 0:00:28]} Be7 {[%emt 0:01:51]} 11. g3 {[%emt 0:00:11]} O-O {[%emt 0:01:46]} 12. Re1 {[%emt 0:00:21]} Rd8 {[%emt 0:01:10]} 13. b3 {[%emt 0:01:55]} c5 {[%emt 0:05:54]} 14. cxd5 {[%emt 0:10:44]} Rxd5 {[%emt 0:00:48]} 15. Nc4 {[%emt 0:00:30]} Qa6 {[%emt 0:02:26]} 16. Qe4 {[%emt 0:08:41]} cxd4 {[%emt 0:09:45]} 17. g4 {[%emt 0:03:56]} hxg4 {[%emt 0:10:01]} 18. Qxg4 {[%emt 0:00:07]} Nc6 {[%emt 0:03:27]} 19. Bg5 {[%emt 0:05:47]} d3 {[%emt 0:09:24]} 20. Ne3 {[%emt 0:04:32]} Nxe3 {[%emt 0:04:53]} 21. Rxe3 {[%emt 0:00:14]} d2 {[%emt 0:03:07]} 22. Rd1 {[%emt 0:02:57]} Rad8 {[%emt 0:03:09]} 23. Bf6 {[%emt 0:05:01]} Bxf6 {[%emt 0:06:57]} 24. exf6 {[%emt 0:00:07]} g6 {[%emt 0:00:20]} 25. Qf4 {[%emt 0:07:13]} Qa3 {[%emt 0:05:24]} 26. Rxe6 {[%emt 0:20:55]} fxe6 {[%emt 0:08:55]} 27. Qh6 {[%emt 0:00:06]} Qf8 {[%emt 0:04:59]} 28. Qxg6+ {[%emt 0:00:06]} Kh8 {[%emt 0:00:05]} 29. Ng5 {[%emt 0:00:57]} Rxg5+ {[%emt 0:01:29]} 30. hxg5 {[%emt 0:00:11]} Rd7 {[%emt 0:01:50]} 31. Kg2 {[%emt 0:01:02]} Rh7 {[%emt 0:02:07]} 32. Qe4 {[%emt 0:01:36]} Qd6 {[%emt 0:01:43]} 33. f4 {[%emt 0:03:55]} Nb4 {[%emt 0:04:48]} 34. g6 {[%emt 0:02:26]} Rh6 {[%emt 0:01:25]} 35. Kf3 {[%emt 0:07:38]} Nxa2 {[%emt 0:02:01]} 36. f7 {[%emt 0:01:38]} Kg7 {[%emt 0:00:38]} 37. Rxd2 {[%emt 0:00:43]} Qc6 {[%emt 0:01:16]} 38. Qxc6 {[%emt 0:00:18]} bxc6 {[%emt 0:00:04]} 39. Rd8 {[%emt 0:00:44]} 1-0

[Event "Czech Juniors Girls 2024"]
[Site "Jaromerice nad Rokytnou"]
[Date "2024.03.10"]
[Round "1.4"]
[White "Sulcova, Tereza Radmila"]
[Black "Zelbova, Lada"]
[Result "1/2-1/2"]
[ECO "A06"]
[WhiteElo "1835"]
[BlackElo "1954"]
[Annotator "RC"]
[PlyCount "86"]
[EventDate "2024.03.10"]
[EventType "tourn"]
[EventCountry "CZE"]
[SourceTitle "playchess.com"]
[Source "ChessBase"]
[SourceQuality "1"]
[WhiteTeam "Czech Republic"]
[BlackTeam "Czech Republic"]
[WhiteTeamCountry "CZE"]
[BlackTeamCountry "CZE"]
[TimeControl "40/5400+30:1800+30"]

1. b3 {[%emt 0:00:42]} d5 {[%emt 0:00:42]} 2. Bb2 {[%emt 0:00:39]} Nf6 {[%emt 0:01:00]} 3. Nf3 {[%emt 0:00:47]} g6 {[%emt 0:01:29]} 4. Bxf6 {[%emt 0:08:18]} exf6 {[%emt 0:00:08]} 5. d4 {[%emt 0:00:10]} Bg7 {[%emt 0:03:51]} 6. g3 {[%emt 0:02:19]} O-O {[%emt 0:01:29]} 7. Bg2 {[%emt 0:01:45]} Be6 {[%emt 0:02:24]} 8. O-O {[%emt 0:03:10]} Nd7 {[%emt 0:01:54]} 9. Nbd2 {[%emt 0:05:05]} f5 {[%emt 0:02:58]} 10. Rc1 {[%emt 0:06:39]} c6 {[%emt 0:10:20]} 11. e3 {[%emt 0:04:09]} g5 {[%emt 0:12:34]} 12. c4 {[%emt 0:12:59]} Qf6 {[%emt 0:03:30]} 13. Ne1 {[%emt 0:07:50]} Rac8 {[%emt 0:07:17]} 14. Nd3 {[%emt 0:05:21]} Bh6 {[%emt 0:15:23]} 15. f4 {[%emt 0:07:18]} g4 {[%emt 0:01:34]} 16. c5 {[%emt 0:03:54]} Qe7 {[%emt 0:04:15]} 17. b4 {[%emt 0:09:33]} f6 {[%emt 0:02:10]} 18. Re1 {[%emt 0:01:01]} Nb8 {[%emt 0:01:13]} 19. Nb3 {[%emt 0:03:10]} Bd7 {[%emt 0:01:30]} 20. a4 {[%emt 0:02:12]} Kh8 {[%emt 0:00:49]} 21. Na5 {[%emt 0:04:19]} Be6 {[%emt 0:07:44]} 22. Qd2 {[%emt 0:02:55]} Qc7 {[%emt 0:01:24]} 23. Rc2 {[%emt 0:01:46]} Nd7 {[%emt 0:00:15]} 24. b5 {[%emt 0:00:39]} Rfe8 {[%emt 0:00:51]} 25. Kf2 {[%emt 0:00:43]} Bf8 {[%emt 0:01:40]} 26. Rb1 {[%emt 0:00:30]} Rb8 {[%emt 0:02:09]} 27. bxc6 {[%emt 0:01:19]} bxc6 {[%emt 0:00:00]} 28. Rcb2 {[%emt 0:00:09]} Rxb2 {[%emt 0:00:39]} 29. Rxb2 {[%emt 0:00:04]} Rb8 {[%emt 0:00:17]} 30. Rxb8 {[%emt 0:00:35]} Nxb8 {[%emt 0:00:14]} 31. Bf1 {[%emt 0:00:44]} Bc8 {[%emt 0:01:25]} 32. Ne1 {[%emt 0:02:12]} Be7 {[%emt 0:00:17]} 33. Nb3 {[%emt 0:00:32]} Qb7 {[%emt 0:00:53]} 34. Na5 {[%emt 0:00:55]} Qc7 {[%emt 0:00:17]} 35. Bd3 {[%emt 0:00:30]} Na6 {[%emt 0:02:24]} 36. Nb3 {[%emt 0:01:22]} Bd8 {[%emt 0:03:25]} 37. Ng2 {[%emt 0:00:17]} Qb7 {[%emt 0:00:43]} 38. Qd1 {[%emt 0:00:20]} Nb4 {[%emt 0:01:56]} 39. Bb1 {[%emt 0:00:15]} Qa6 {[%emt 0:02:46]} 40. Nc1 {[%emt 0:00:25]} Be6 {[%emt 0:03:02]} 41. Nh4 {[%emt 0:30:56]} Qc8 {[%emt 0:31:03]} 42. Nd3 {[%emt 0:00:00]} Na6 {[%emt 0:00:00]} 43. Bc2 {[%emt 0:00:00]} Nc7 {[%emt 0:00:00]} 1/2-1/2

[Event "Czech Juniors Girls 2024"]
[Site "Jaromerice nad Rokytnou"]
[Date "2024.03.10"]
[Round "1.5"]
[White "Jakubse, Tamae Severina"]
[Black "Nespora, Tatana"]
[Result "1/2-1/2"]
[ECO "B22"]
[WhiteElo "1861"]
[BlackElo "1839"]
[Annotator "NA"]
[PlyCount "63"]
[EventDate "2024.03.10"]
[EventType "tourn"]
[EventCountry "CZE"]
[SourceTitle "playchess.com"]
[Source "ChessBase"]
[SourceQuality "1"]
[WhiteTeam "Czech Republic"]
[BlackTeam "Czech Republic"]
[WhiteTeamCountry "CZE"]
[BlackTeamCountry "CZE"]
[TimeControl "40/5400+30:1800+30"]

1. e4 {[%emt 0:00:03]} c5 {[%emt 0:00:32]} 2. c3 {[%emt 0:00:06]} d5 {[%emt 0:00:23]} 3. exd5 {[%emt 0:00:07]} Qxd5 {[%emt 0:00:20]} 4. d4 {[%emt 0:00:06]} cxd4 {[%emt 0:00:20]} 5. cxd4 {[%emt 0:00:08]} e5 {[%emt 0:00:32]} 6. Nf3 {[%emt 0:00:06]} exd4 {[%emt 0:00:24]} 7. Qxd4 {[%emt 0:00:08]} Nf6 {[%emt 0:00:46]} 8. Nc3 {[%emt 0:00:08]} Qxd4 {[%emt 0:01:29]} 9. Nxd4 {[%emt 0:00:06]} Bc5 {[%emt 0:00:42]} 10. Ndb5 {[%emt 0:01:38]} Na6 {[%emt 0:01:47]} 11. Bc4 {[%emt 0:00:26]} O-O {[%emt 0:02:23]} 12. O-O {[%emt 0:00:04]} Bf5 {[%emt 0:04:24]} 13. Bg5 {[%emt 0:05:44]} Ne4 {[%emt 0:07:17]} 14. Nxe4 {[%emt 0:04:35]} Bxe4 {[%emt 0:00:37]} 15. Rfe1 {[%emt 0:04:04]} Rfe8 {[%emt 0:13:51]} 16. a3 {[%emt 0:07:46]} Rac8 {[%emt 0:27:30]} 17. Rac1 {[%emt 0:14:40]} h6 {[%emt 0:22:52]} 18. Bh4 {[%emt 0:22:12]} Bc6 {[%emt 0:01:14]} 19. b4 {[%emt 0:08:45]} Bxb5 {[%emt 0:03:33]} 20. Bxb5 {[%emt 0:00:32]} Rxe1+ {[%emt 0:00:17]} 21. Rxe1 {[%emt 0:00:11]} Bd4 {[%emt 0:01:39]} 22. h3 {[%emt 0:08:25]} Bb2 {[%emt 0:01:37]} 23. Re3 {[%emt 0:01:27]} Nc7 {[%emt 0:00:52]} 24. Bd7 {[%emt 0:00:33]} Ra8 {[%emt 0:01:51]} 25. Bg3 {[%emt 0:00:58]} Nd5 {[%emt 0:00:58]} 26. Rd3 {[%emt 0:04:29]} Nf6 {[%emt 0:00:18]} 27. Ba4 {[%emt 0:00:31]} Ne4 {[%emt 0:01:15]} 28. Bd1 {[%emt 0:09:35]} Nxg3 {[%emt 0:01:15]} 29. fxg3 {[%emt 0:00:08]} Rc8 {[%emt 0:00:30]} 30. Bf3 {[%emt 0:00:26]} b6 {[%emt 0:00:27]} 31. Bb7 {[%emt 0:02:15]} Rc7 {[%emt 0:02:02]} 32. Kf2 {[%emt 0:00:34]} 1/2-1/2

[Event "Czech Juniors Girls 2024"]
[Site "Jaromerice nad Rokytnou"]
[Date "2024.03.10"]
[Round "2.1"]
[White "Trasakova, Adela"]
[Black "Nespora, Tatana"]
[Result "1-0"]
[ECO "A87"]
[WhiteElo "1935"]
[BlackElo "1839"]
[Annotator "RC"]
[PlyCount "117"]
[EventDate "2024.03.10"]
[EventType "tourn"]
[EventCountry "CZE"]
[SourceTitle "playchess.com"]
[Source "ChessBase"]
[SourceQuality "1"]
[WhiteTeam "Czech Republic"]
[BlackTeam "Czech Republic"]
[WhiteTeamCountry "CZE"]
[BlackTeamCountry "CZE"]
[TimeControl "40/5400+30:1800+30"]

1. d4 {[%emt 0:00:03]} f5 {[%emt 0:00:15]} 2. Nf3 {[%emt 0:00:06]} Nf6 {[%emt 0:00:17]} 3. g3 {[%emt 0:00:07]} d6 {[%emt 0:00:19]} 4. Bg2 {[%emt 0:00:22]} g6 {[%emt 0:00:19]} 5. O-O {[%emt 0:00:12]} Bg7 {[%emt 0:00:16]} 6. b3 {[%emt 0:00:34]} O-O {[%emt 0:00:36]} 7. Bb2 {[%emt 0:00:36]} Qe8 {[%emt 0:00:45]} 8. c4 {[%emt 0:00:58]} h6 {[%emt 0:04:29]} 9. Nbd2 {[%emt 0:04:19]} Na6 {[%emt 0:09:46]} 10. a3 {[%emt 0:05:33]} c6 {[%emt 0:02:38]} 11. Qc2 {[%emt 0:02:36]} Nh5 {[%emt 0:10:33]} 12. e4 {[%emt 0:10:14]} e5 {[%emt 0:05:51]} 13. dxe5 {[%emt 0:11:06]} dxe5 {[%emt 0:02:55]} 14. c5 {[%emt 0:00:51]} Nf6 {[%emt 0:13:28]} 15. b4 {[%emt 0:16:17]} Nc7 {[%emt 0:06:15]} 16. Rfe1 {[%emt 0:04:36]} f4 {[%emt 0:05:07]} 17. Nc4 {[%emt 0:05:35]} Nd7 {[%emt 0:01:49]} 18. Rad1 {[%emt 0:03:01]} fxg3 {[%emt 0:11:36]} 19. hxg3 {[%emt 0:03:12]} Nb5 {[%emt 0:03:17]} 20. Qd3 {[%emt 0:04:28]} Nd4 {[%emt 0:04:10]} 21. Nxd4 {[%emt 0:03:26]} exd4 {[%emt 0:00:06]} 22. Bxd4 {[%emt 0:00:35]} Ne5 {[%emt 0:00:39]} 23. Nxe5 {[%emt 0:00:53]} Bxe5 {[%emt 0:00:07]} 24. Bxe5 {[%emt 0:00:15]} Qxe5 {[%emt 0:00:09]} 25. Qd6 {[%emt 0:00:50]} Qg5 {[%emt 0:02:18]} 26. Qd2 {[%emt 0:03:45]} Qh5 {[%emt 0:04:36]} 27. Qa2+ {[%emt 0:02:19]} Kh7 {[%emt 0:03:53]} 28. e5 {[%emt 0:00:41]} Bg4 {[%emt 0:03:03]} 29. Rd6 {[%emt 0:01:09]} Rae8 {[%emt 0:02:35]} 30. e6 {[%emt 0:01:06]} Qg5 {[%emt 0:00:21]} 31. Qb2 {[%emt 0:10:12]} Re7 {[%emt 0:01:09]} 32. Qd4 {[%emt 0:03:02]} Rfe8 {[%emt 0:01:41]} 33. f4 {[%emt 0:00:51]} Qf5 {[%emt 0:00:32]} 34. Rd7 {[%emt 0:00:57]} h5 {[%emt 0:00:39]} 35. Be4 {[%emt 0:01:36]} Qf8 {[%emt 0:00:23]} 36. Qd3 {[%emt 0:01:29]} Bf5 {[%emt 0:01:04]} 37. Bxf5 {[%emt 0:00:28]} Qxf5 {[%emt 0:00:06]} 38. Qd6 {[%emt 0:00:38]} Qf6 {[%emt 0:00:49]} 39. Re5 {[%emt 0:00:29]} Kg8 {[%emt 0:00:36]} 40. Rd8 {[%emt 0:00:25]} Kh7 {[%emt 0:00:18]} 41. Rxe8 {[%emt 0:05:07]} Rxe8 {[%emt 0:00:19]} 42. e7 {[%emt 0:00:12]} Qf7 {[%emt 0:02:40]} 43. Kg2 {[%emt 0:09:39]} Qa2+ {[%emt 0:01:45]} 44. Kh3 {[%emt 0:01:12]} Qb1 {[%emt 0:08:05]} 45. Kh4 {[%emt 0:01:25]} Qb3 {[%emt 0:01:12]} 46. Rg5 {[%emt 0:06:57]} Qb1 {[%emt 0:02:07]} 47. Re5 {[%emt 0:00:46]} Qb3 {[%emt 0:01:01]} 48. Qe6 {[%emt 0:06:06]} Qxe6 {[%emt 0:04:13]} 49. Rxe6 {[%emt 0:00:02]} Kh6 {[%emt 0:00:18]} 50. f5 {[%emt 0:01:04]} Kh7 {[%emt 0:01:08]} 51. fxg6+ {[%emt 0:00:34]} Kg7 {[%emt 0:00:35]} 52. Kxh5 {[%emt 0:00:36]} b6 {[%emt 0:03:08]} 53. Kg5 {[%emt 0:00:24]} bxc5 {[%emt 0:01:25]} 54. bxc5 {[%emt 0:00:02]} a5 {[%emt 0:00:35]} 55. Rf6 {[%emt 0:01:31]} Rxe7 {[%emt 0:01:58]} 56. Rf7+ {[%emt 0:00:04]} Rxf7 {[%emt 0:00:11]} 57. gxf7 {[%emt 0:00:02]} Kxf7 {[%emt 0:00:02]} 58. Kf5 {[%emt 0:00:14]} a4 {[%emt 0:00:48]} 59. Ke5 {[%emt 0:00:13]} 1-0

[Event "Czech Juniors Girls 2024"]
[Site "Jaromerice nad Rokytnou"]
[Date "2024.03.10"]
[Round "2.2"]
[White "Zelbova, Lada"]
[Black "Jakubse, Tamae Severina"]
[Result "1-0"]
[ECO "D00"]
[WhiteElo "1954"]
[BlackElo "1861"]
[Annotator "RC"]
[PlyCount "61"]
[EventDate "2024.03.10"]
[EventType "tourn"]
[EventCountry "CZE"]
[SourceTitle "playchess.com"]
[Source "ChessBase"]
[SourceQuality "1"]
[WhiteTeam "Czech Republic"]
[BlackTeam "Czech Republic"]
[WhiteTeamCountry "CZE"]
[BlackTeamCountry "CZE"]
[TimeControl "40/5400+30:1800+30"]

1. d4 {[%emt 0:00:06]} Nf6 {[%emt 0:00:07]} 2. Nf3 {[%emt 0:00:18]} g6 {[%emt 0:00:07]} 3. Nc3 {[%emt 0:00:09]} d5 {[%emt 0:00:08]} 4. Bf4 {[%emt 0:00:25]} Bg7 {[%emt 0:00:08]} 5. e3 {[%emt 0:00:08]} O-O {[%emt 0:00:13]} 6. Nb5 {[%emt 0:00:45]} Na6 {[%emt 0:00:09]} 7. h3 {[%emt 0:00:15]} Ne4 {[%emt 0:00:48]} 8. Bd3 {[%emt 0:02:12]} c6 {[%emt 0:01:37]} 9. Nc3 {[%emt 0:00:58]} Nxc3 {[%emt 0:04:54]} 10. bxc3 {[%emt 0:00:08]} c5 {[%emt 0:02:42]} 11. Bxa6 {[%emt 0:04:22]} bxa6 {[%emt 0:00:46]} 12. O-O {[%emt 0:02:45]} Qa5 {[%emt 0:03:17]} 13. Qd2 {[%emt 0:06:23]} Bf5 {[%emt 0:04:34]} 14. g4 {[%emt 0:14:42]} Bd7 {[%emt 0:10:20]} 15. Rfd1 {[%emt 0:05:17]} Rac8 {[%emt 0:08:49]} 16. Ne1 {[%emt 0:16:51]} h5 {[%emt 0:15:58]} 17. f3 {[%emt 0:07:32]} hxg4 {[%emt 0:05:07]} 18. hxg4 {[%emt 0:00:51]} Ba4 {[%emt 0:13:23]} 19. Nd3 {[%emt 0:02:30]} cxd4 {[%emt 0:08:25]} 20. cxd4 {[%emt 0:01:07]} Rc3 {[%emt 0:00:21]} 21. Rac1 {[%emt 0:01:44]} Rfc8 {[%emt 0:01:13]} 22. Bg3 {[%emt 0:18:50]} Qb5 {[%emt 0:05:09]} 23. Nc5 {[%emt 0:01:21]} Qc4 {[%emt 0:02:02]} 24. Be1 {[%emt 0:00:43]} Rxc2 {[%emt 0:02:53]} 25. Rxc2 {[%emt 0:01:02]} Qxc2 {[%emt 0:00:07]} 26. Qxc2 {[%emt 0:00:40]} Bxc2 {[%emt 0:00:04]} 27. Rd2 {[%emt 0:00:41]} Rxc5 {[%emt 0:02:50]} 28. dxc5 {[%emt 0:00:11]} Bb1 {[%emt 0:02:06]} 29. c6 {[%emt 0:00:39]} Be5 {[%emt 0:00:36]} 30. Rxd5 {[%emt 0:00:20]} Bd6 {[%emt 0:01:25]} 31. Rxd6 {[%emt 0:00:29]} 1-0

[Event "Czech Juniors Girls 2024"]
[Site "Jaromerice nad Rokytnou"]
[Date "2024.03.10"]
[Round "2.3"]
[White "Petirova, Iva"]
[Black "Sulcova, Tereza Radmila"]
[Result "0-1"]
[ECO "B00"]
[WhiteElo "1846"]
[BlackElo "1835"]
[Annotator "NA"]
[PlyCount "68"]
[EventDate "2024.03.10"]
[EventType "tourn"]
[EventCountry "CZE"]
[SourceTitle "playchess.com"]
[Source "ChessBase"]
[SourceQuality "1"]
[WhiteTeam "Czech Republic"]
[BlackTeam "Czech Republic"]
[WhiteTeamCountry "CZE"]
[BlackTeamCountry "CZE"]
[TimeControl "40/5400+30:1800+30"]

1. e4 {[%emt 0:00:03]} b6 {[%emt 0:00:11]} 2. d4 {[%emt 0:00:11]} Bb7 {[%emt 0:00:24]} 3. Bd3 {[%emt 0:00:49]} e6 {[%emt 0:01:10]} 4. Nf3 {[%emt 0:02:20]} c5 {[%emt 0:14:17]} 5. c3 {[%emt 0:03:09]} Nf6 {[%emt 0:03:57]} 6. Bg5 {[%emt 0:09:06]} Be7 {[%emt 0:02:55]} 7. Nbd2 {[%emt 0:01:37]} d6 {[%emt 0:10:08]} 8. Qe2 {[%emt 0:08:17]} Nbd7 {[%emt 0:03:28]} 9. a4 {[%emt 0:04:32]} a6 {[%emt 0:05:15]} 10. O-O {[%emt 0:06:49]} h6 {[%emt 0:06:46]} 11. Bxf6 {[%emt 0:09:03]} Nxf6 {[%emt 0:01:56]} 12. Rfe1 {[%emt 0:04:31]} O-O {[%emt 0:03:51]} 13. Rac1 {[%emt 0:05:14]} Qc7 {[%emt 0:17:12]} 14. Rc2 $11 {[%emt 0:06:32]} Rfc8 {[%emt 0:02:55]} 15. b4 {[%emt 0:16:48]} Bf8 {[%emt 0:04:02]} 16. e5 {[%emt 0:03:49]} Nd7 {[%emt 0:01:51]} 17. bxc5 {[%emt 0:01:29]} bxc5 {[%emt 0:01:35]} 18. Nc4 {[%emt 0:01:22]} d5 {[%emt 0:00:59]} 19. Nd6 {[%emt 0:01:39]} Bxd6 {[%emt 0:01:20]} 20. exd6 {[%emt 0:00:06]} Qxd6 {[%emt 0:00:03]} 21. Rb2 {[%emt 0:00:29]} Rab8 {[%emt 0:02:30]} 22. Reb1 {[%emt 0:00:24]} Bc6 {[%emt 0:06:22]} 23. Bxa6 {[%emt 0:01:40]} Rxb2 {[%emt 0:00:20]} 24. Rxb2 {[%emt 0:00:03]} Ra8 {[%emt 0:00:09]} 25. Bb5 {[%emt 0:01:26]} Bxb5 {[%emt 0:02:08]} 26. Qxb5 {[%emt 0:01:04]} c4 {[%emt 0:00:19]} 27. Qb4 {[%emt 0:01:08]} Qa6 {[%emt 0:00:27]} 28. h4 {[%emt 0:04:53]} Qxa4 {[%emt 0:01:04]} 29. Qxa4 {[%emt 0:01:07]} Rxa4 {[%emt 0:00:02]} 30. Rb7 {[%emt 0:00:07]} Nf6 {[%emt 0:01:12]} 31. Ne5 {[%emt 0:00:29]} Ra1+ {[%emt 0:00:27]} 32. Kh2 {[%emt 0:00:04]} Rc1 {[%emt 0:00:18]} 33. g4 {[%emt 0:01:34]} g6 {[%emt 0:02:22]} 34. Rxf7 {[%emt 0:01:47]} Nxg4+ {[%emt 0:00:15]} 0-1